bitfinex-derivatives/quotes_SOLF0:USTF0_20250819
["timestamp","ask_amount","ask_price","bid_price","bid_amount"]
[1755623246049,2.93,176.85,176.75,2.97]
[1755623246258,2.7416387,176.84,176.75,2.97]
[1755623246549,2.7416387,176.83,176.78,0.04095903]
[1755623246754,5.6716387,176.82,176.78,0.04095903]
[1755623246951,2.7416387,176.81,176.78,0.04095903]
[1755623247260,5.6716387,176.8,176.72,379.78]
[1755623247459,2.1632,176.79,176.78,0.03795131]
[1755623247753,6.14969509,176.87,176.71,2.97]
[1755623247960,6.14969509,176.87,176.69,4.61333758]
[1755623248159,6.14969509,176.86,176.77,0.03843569]
[1755623248561,6.14969509,176.86,176.68,4.61333758]
[1755623248953,6.14969509,176.86,176.8,0.03765102]
[1755623249150,6.14969509,176.86,176.68,4.61333758]
[1755623249353,6.14969509,176.86,176.67,157.15333758]
[1755623249354,1.4,176.85,176.67,157.15333758]
[1755623249560,1.4,176.85,176.68,2.97]
[1755623249965,1.4,176.85,176.69,5.35284077]
[1755623250160,1.4,176.85,176.68,2.97]
[1755623250161,1.4,176.85,176.7,5.35284077]
[1755623250468,1.4,176.77,176.71,5.35284077]
[1755623250759,0.03627507,176.78,176.72,5.35284077]
[1755623250961,0.03627507,176.78,176.73,5.35284077]
[1755623251150,1.4,176.75,176.74,5.35284077]
[1755623251353,1.4,176.75,176.74,5.34755668]
[1755623251556,12.09762541,176.82,176.74,5.34755668]
[1755623251756,1.4,176.81,176.75,5.34755668]
[1755623251956,1.4,176.8,176.76,5.34755668]
[1755623252156,1.4,176.78,176.77,5.34755668]
[1755623252352,12.09762541,176.86,176.77,5.34755668]
[1755623252549,1.4,176.8,176.78,5.34755668]
[1755623252749,1.4,176.87,176.79,5.34755668]
[1755623252953,1.4,176.87,176.8,5.34755668]
[1755623253156,1.4,176.87,176.81,5.34755668]
[1755623253358,1.4,176.88,176.82,5.34755668]
[1755623253659,1.4,176.88,176.83,5.34755668]
[1755623253855,1.4,176.88,176.72,2.97]
[1755623253856,158.42969509,176.89,176.84,5.34755668]
[1755623254057,1.4,176.88,176.72,2.97]
[1755623254258,1.4,176.88,176.73,5.34329703]
[1755623254459,1.4,176.88,176.74,5.34312612]
[1755623254659,158.42969509,176.89,176.75,5.34312612]
[1755623254660,1.4,176.85,176.75,5.34312612]
[1755623254860,1.4,176.85,176.76,5.34312612]
[1755623255058,1.4,176.85,176.67,2.97]
[1755623255256,1.4,176.85,176.68,5.34379982]
[1755623255257,1.4,176.84,176.68,5.34379982]
[1755623255456,1.4,176.84,176.69,5.34379982]
[1755623255658,1.4,176.81,176.7,5.34379982]
[1755623255855,1.4,176.81,176.71,5.34379982]
[1755623256053,1.4,176.81,176.72,5.34379982]
[1755623256260,1.4,176.81,176.73,5.34379982]
[1755623256560,12.09762541,176.78,176.74,1.89577488]
[1755623256758,12.09762541,176.78,176.63,2.97]
[1755623256961,130.14969509,176.82,176.63,2.97]
[1755623257263,12.09762541,176.83,176.63,2.97]
[1755623257961,18.2473205,176.83,176.63,2.97]
[1755623258862,12.09762541,176.83,176.63,2.97]
[1755623259060,164.05762541,176.83,176.63,2.97]
[1755623259462,2.71842005,176.82,176.63,2.97]
[1755623259762,2.71842005,176.81,176.63,2.97]
[1755623259963,151.96,176.83,176.65,3.09]
[1755623260163,2.71875984,176.82,176.65,3.09]
[1755623260367,151.96,176.83,176.66,4.61333758]
[1755623260663,151.96,176.83,176.68,3.09]
[1755623261660,12.09762541,176.88,176.68,3.09]
[1755623261858,2.7185648,176.87,176.69,3.09]
[1755623262058,2.7185648,176.86,176.69,3.09]
[1755623262264,2.7185648,176.85,176.69,3.09]
[1755623262464,2.7185648,176.84,176.69,3.09]
[1755623262767,2.7185648,176.83,176.69,3.09]
[1755623262964,2.7185648,176.82,176.69,3.09]
[1755623263162,2.7185648,176.81,176.69,3.09]
[1755623263465,6.14969509,176.87,176.69,3.09]
[1755623263667,2.71746701,176.86,176.69,3.09]
[1755623263866,2.71746701,176.85,176.69,3.09]
[1755623264070,2.71574794,176.84,176.69,3.09]
[1755623264261,2.71574794,176.83,176.69,3.09]
[1755623264461,12.09762541,176.88,176.69,3.09]
[1755623264768,2.71532237,176.87,176.69,3.09]
[1755623264958,2.71532237,176.86,176.69,3.09]
[1755623265164,2.71532237,176.85,176.69,3.09]
[1755623265363,2.71532237,176.84,176.69,3.09]
[1755623265569,2.71532237,176.83,176.69,3.09]
[1755623265764,18.2473205,176.88,176.69,3.09]
[1755623265969,2.71501512,176.87,176.69,3.09]
[1755623266165,2.71501512,176.86,176.69,3.09]
[1755623266366,7.60827224,176.84,176.69,3.09]
[1755623266762,7.60827224,176.87,176.7,3.09]
[1755623266968,2.71439601,176.86,176.7,3.09]
[1755623267171,2.71439601,176.85,176.7,3.09]
[1755623267365,7.60827224,176.87,176.7,3.09]
[1755623267565,2.71420444,176.86,176.7,3.09]
[1755623267768,7.60827224,176.87,176.7,3.09]
[1755623267967,2.71430342,176.86,176.7,3.09]
[1755623268270,151.42,176.88,176.73,7.60827224]
[1755623268470,151.42,176.88,176.74,3.09]
[1755623268671,159.02827224,176.88,176.74,3.09]
[1755623268872,2.71459853,176.87,176.74,3.09]
[1755623269073,2.71459853,176.86,176.74,3.09]
[1755623269371,7.60827224,176.84,176.74,3.09]
[1755623270468,2.7156863,176.83,176.74,3.09]
[1755623270668,7.60827224,176.84,176.74,3.09]
[1755623271177,2.71586427,176.83,176.74,3.09]
[1755623271376,7.60827224,176.84,176.74,3.09]
[1755623272579,7.60827224,176.91,176.74,3.09]
[1755623272876,2.7166292,176.9,176.74,3.09]
[1755623273074,2.7166292,176.89,176.74,3.09]
[1755623273274,2.7166292,176.88,176.74,3.09]
[1755623273478,158.84827224,176.91,176.74,3.09]
[1755623273672,2.71666042,176.9,176.74,3.09]
[1755623273877,2.71666042,176.89,176.74,3.09]
[1755623274073,158.84827224,176.91,176.74,3.09]
[1755623274374,2.71716506,176.9,176.74,3.09]
[1755623274576,2.71716506,176.89,176.74,3.09]
[1755623274775,158.84827224,176.91,176.74,3.09]
[1755623275079,2.71693862,176.9,176.74,3.09]
[1755623275882,2.71784148,176.89,176.74,3.09]
[1755623276485,2.71890452,176.88,176.74,3.09]
[1755623276783,158.70827224,176.91,176.74,3.09]
[1755623277576,7.60827224,176.87,176.74,3.09]
[1755623277777,7.60827224,176.83,176.71,3.09]
[1755623277973,158.70827224,176.83,176.71,3.09]
[1755623278975,2.7190519,176.82,176.71,3.09]
[1755623279175,2.7190519,176.81,176.71,3.09]
[1755623279380,158.70827224,176.83,176.71,3.09]
[1755623279682,2.71942654,176.82,176.71,3.09]
[1755623279877,2.71942654,176.81,176.71,3.09]
[1755623280079,2.71918882,176.8,176.65,3.09]
[1755623280283,158.70827224,176.83,176.65,3.09]
[1755623280475,2.71994729,176.82,176.65,3.09]
[1755623280679,7.60827224,176.79,176.65,3.09]
[1755623280884,2.71994729,176.78,176.65,3.09]
[1755623281086,7.60827224,176.75,176.65,3.09]
[1755623281294,2.72006686,176.74,176.61,1.80589]
[1755623281486,7.60827224,176.78,176.62,3.09]
[1755623281687,2.72013868,176.77,176.62,3.09]
[1755623281993,2.72013868,176.76,176.62,3.09]
[1755623282193,2.72013868,176.75,176.62,3.09]
[1755623282390,386.44969509,176.8,176.61,1.80589]
[1755623282391,161.44771643,176.74,176.61,1.80589]
[1755623282588,5.65954697,176.73,176.61,9e-05]
[1755623282789,2.71944545,176.72,176.61,9e-05]
[1755623282991,2.94,176.73,176.61,9e-05]
[1755623283598,151.12,176.74,176.61,9e-05]
[1755623284097,151.12,176.74,176.61,17.88369982]
[1755623284397,151.12,176.74,176.61,12.22169982]
[1755623284587,2.94,176.79,176.66,3.09]
[1755623284793,380.3,176.8,176.66,3.09]
[1755623285090,380.3,176.8,176.66,8.7504]
[1755623285390,380.3,176.8,176.69,7.60827224]
[1755623285588,2.94,176.87,176.7,3.09]
[1755623285785,2.72276766,176.86,176.71,3.09]
[1755623285991,2.72276766,176.85,176.71,3.09]
[1755623286190,2.72276766,176.84,176.71,3.09]
[1755623286392,2.94,176.87,176.71,3.09]
[1755623286589,2.72349075,176.86,176.71,3.09]
[1755623286790,2.94,176.84,176.71,3.09]
[1755623287298,10.54827224,176.82,176.71,3.09]
[1755623287495,2.72255424,176.81,176.71,3.09]
[1755623287695,2.94,176.8,176.67,3.09]
[1755623287899,2.72255424,176.79,176.67,3.09]
[1755623288596,2.94,176.78,176.67,3.09]
[1755623288895,2.72255424,176.77,176.67,3.09]
[1755623289097,9.23969509,176.85,176.69,7.60827224]
[1755623289293,2.72419147,176.84,176.7,3.12]
[1755623289488,2.72419147,176.83,176.7,3.12]
[1755623289694,2.72377622,176.82,176.7,3.12]
[1755623289900,3.09,176.83,176.7,3.12]
[1755623290200,2.72327501,176.82,176.7,3.12]
[1755623290399,2.72327501,176.81,176.7,3.12]
[1755623290596,3.09,176.83,176.7,3.12]
[1755623290801,2.72368442,176.82,176.7,3.12]
[1755623291093,151.1,176.86,176.7,3.12]
[1755623291302,2.72349239,176.85,176.72,3.12]
[1755623291601,151.1,176.86,176.72,7.73333758]
[1755623291800,151.1,176.86,176.75,7.60827224]
[1755623292102,3.09,176.92,176.76,3.12]
[1755623292293,2.72337071,176.91,176.76,13.39073758]
[1755623292601,3.09,176.92,176.77,3.12]
[1755623292797,3.09,176.92,176.78,5.6567]
[1755623292989,2.72327404,176.91,176.79,3.12]
[1755623293191,3.09,176.92,176.79,3.12]
[1755623293392,0.03738292,176.87,176.79,3.12]
[1755623295200,3.09,176.86,176.73,3.12]
[1755623295796,3.09,176.92,176.73,3.12]
[1755623296003,2.7170645,176.91,176.75,3.12]
[1755623296202,3.09,176.92,176.76,3.12]
[1755623296402,2.71633786,176.91,176.76,3.12]
[1755623296604,3.09,176.89,176.76,3.12]
[1755623296802,2.71642103,176.88,176.76,3.12]
[1755623296994,12.09566837,176.92,176.76,3.12]
[1755623296995,2.71600353,176.87,176.76,3.12]
[1755623297199,3.09,176.86,176.76,3.12]
[1755623297796,2.71583546,176.85,176.76,3.12]
[1755623298000,3.09,176.86,176.69,4.61333758]
[1755623298205,3.09,176.84,176.7,3.12]
[1755623299201,2.71606477,176.83,176.7,3.12]
[1755623299408,3.09,176.84,176.7,3.12]
[1755623299606,2.71632095,176.83,176.7,3.12]
[1755623299908,3.09,176.81,176.7,3.12]
[1755623300604,3.09,176.85,176.7,3.12]
[1755623300810,2.71710338,176.84,176.7,3.12]
[1755623301010,3.09,176.85,176.7,3.12]
[1755623301209,2.71714264,176.84,176.7,3.12]
[1755623301417,2.71714264,176.83,176.7,3.12]
[1755623301712,3.09,176.85,176.7,3.12]
[1755623302106,3.09,176.89,176.71,4.73900458]
[1755623302306,2.71862366,176.88,176.72,3.12]
[1755623302506,2.71862779,176.87,176.73,3.12]
[1755623302706,3.09,176.89,176.73,3.12]
[1755623302906,2.71862697,176.88,176.73,8.7782]
[1755623303212,3.09,176.89,176.74,3.12]
[1755623303510,2.71898262,176.88,176.74,3.12]
[1755623303711,2.71898262,176.87,176.74,3.12]
[1755623303912,3.09,176.89,176.74,3.12]
[1755623304212,2.71912907,176.88,176.74,3.12]
[1755623304407,3.09,176.89,176.74,3.12]
[1755623304605,2.71950412,176.88,176.74,3.12]
[1755623304914,3.09,176.95,176.77,3.12]
[1755623305117,3.09,176.93,176.77,3.12]
[1755623305313,3.09,176.93,176.77,5.6569]
[1755623305506,3.09,176.93,176.78,3.12]
[1755623306107,3.09,176.93,176.77,4.73691305]
[1755623306308,3.09,176.97,176.8,15.21566837]
[1755623306508,3.09,176.97,176.81,3.12]
[1755623306706,2.7180977,176.96,176.81,3.12]
[1755623306913,5.80780452,176.95,176.81,3.12]
[1755623307107,2.71780452,176.94,176.81,3.12]
[1755623307405,3.09,176.95,176.81,3.12]
[1755623307607,2.71631352,176.94,176.81,3.12]
[1755623307805,3.09,176.95,176.81,3.12]
[1755623308013,2.71632605,176.94,176.81,3.12]
[1755623308216,3.09,176.95,176.81,3.12]
[1755623308414,2.7156525,176.94,176.81,3.12]
[1755623308609,3.09,176.95,176.81,3.12]
[1755623308816,3.09,176.92,176.81,3.12]
[1755623309006,3.09,176.92,176.76,383.3]
[1755623309209,3.09,176.9,176.77,3.12]
[1755623310610,3.09,176.9,176.78,3.12]
[1755623312021,2.71405266,176.89,176.76,380.18]
[1755623312321,3.09,176.88,176.76,380.18]
[1755623312612,3.09,176.88,176.77,3.12]
[1755623313416,10.69304354,176.93,176.77,3.12]
[1755623313714,3.09,176.91,176.77,3.12]
[1755623313914,3.09,176.89,176.77,3.12]
[1755623314312,10.69304354,176.89,176.77,3.12]
[1755623314613,2.71405461,176.88,176.77,3.12]
[1755623314817,3.09,176.87,176.77,3.12]
[1755623315224,3.09,176.93,176.77,3.12]
[1755623315521,3.09,176.93,176.78,5.6566]
[1755623315716,3.09,176.93,176.79,3.12]
[1755623316715,3.09,176.93,176.8,3.12]
[1755623317616,3.09,176.91,176.8,3.12]
[1755623318318,3.09,176.91,176.76,3.12]
[1755623318714,3.09,176.91,176.77,3.12]
[1755623319020,3.09,176.91,176.78,3.17]
[1755623319417,2.93,176.93,176.78,3.17]
[1755623319819,2.93,176.91,176.78,3.17]
[1755623320423,160.0901291,176.99,176.79,3.17]
[1755623320424,2.93,176.95,176.79,3.17]
[1755623321619,2.71299533,176.94,176.79,3.17]
[1755623321817,5.64299533,176.93,176.79,3.17]
[1755623322125,2.93,176.93,176.79,3.17]
[1755623322315,7.60304354,176.93,176.79,3.17]
[1755623322515,5.64277438,176.92,176.79,3.17]
[1755623322711,2.93,176.92,176.79,3.17]
[1755623324019,2.93,176.92,176.8,13.25904354]
[1755623324321,2.93,176.96,176.81,3.17]
[1755623324522,2.93,176.96,176.81,5.6556]
[1755623324721,2.93,176.96,176.82,3.17]
[1755623324920,2.93,176.96,176.85,3.17]
[1755623325723,150.92,177.0,176.89,3.17]
[1755623325922,2.93,177.01,176.89,3.17]
[1755623328424,2.93,177.01,176.83,3.17]
[1755623328425,7.60304354,176.95,176.83,3.17]
[1755623328726,2.93,176.94,176.83,3.17]
[1755623332526,2.93,176.98,176.83,3.17]
[1755623333324,2.73605509,176.97,176.83,3.17]
[1755623333521,2.93,176.98,176.83,3.17]
[1755623333720,2.73602777,176.97,176.83,3.17]
[1755623333917,2.93,176.98,176.83,3.17]
[1755623334228,2.73604863,176.97,176.83,3.17]
[1755623334423,2.93,176.98,176.83,3.17]
[1755623334631,2.73633885,176.97,176.83,3.17]
[1755623334828,2.93,176.98,176.83,3.17]
[1755623335028,2.73633718,176.97,176.84,3.17]
[1755623335230,2.93,176.98,176.84,3.17]
[1755623335434,2.93,176.98,176.84,8.8249]
[1755623335620,2.93,176.98,176.85,3.17]
[1755623335824,10.53304354,176.96,176.82,3.17]
[1755623336027,2.73711644,176.95,176.82,3.17]
[1755623336221,10.53304354,176.96,176.82,3.17]
[1755623336426,2.73736186,176.95,176.82,3.17]
[1755623336629,5.66736186,176.94,176.82,3.17]
[1755623336828,2.93,176.94,176.82,3.17]
[1755623339928,2.73659686,176.93,176.82,3.17]
[1755623340135,2.93,176.95,176.82,3.17]
[1755623340531,2.93,177.0,176.86,3.17]
[1755623340834,2.93,177.0,176.85,7.60304354]
[1755623340835,2.93,177.0,176.9,3.17]
[1755623341337,6.14969509,177.06,176.9,3.17]
[1755623341338,2.93,177.06,176.9,3.17]
[1755623341630,380.02,177.13,176.97,7.60304354]
[1755623341631,2.93,177.12,176.97,7.60304354]
[1755623341832,7.13241281,177.18,176.95,150.78]
[1755623342134,2.93,177.16,177.04,3.17]
[1755623342334,0.98271772,177.18,177.04,3.17]
[1755623342530,0.98271772,177.18,177.08,3.17]
[1755623342729,2.93,177.26,177.12,3.17]
[1755623342925,0.98249577,177.23,177.12,3.17]
[1755623343426,2.93,177.28,177.12,3.17]
[1755623343630,0.98234323,177.24,177.14,7.60304354]
[1755623343834,0.98234323,177.24,177.15,3.17]
[1755623344029,2.93,177.28,177.12,3.17]
[1755623344336,0.98227391,177.24,177.18,0.04321589]
[1755623344529,2.93,177.28,177.18,0.04321589]
[1755623344737,0.98226004,177.26,177.18,0.04321589]
[1755623344929,2.93,177.25,177.18,0.04321589]
[1755623346232,2.93,177.23,177.07,3.17]
[1755623346432,2.97107075,177.23,177.07,3.17]
[1755623346737,5.64571301,177.22,177.07,3.17]
[1755623346937,5.64571301,177.21,177.07,3.17]
[1755623347139,2.93,177.2,177.07,3.17]
[1755623347534,2.96747072,177.16,177.07,3.17]
[1755623347735,2.96747072,177.16,177.02,533.81]
[1755623348242,2.93,177.16,177.02,533.81]
[1755623348539,0.04116272,177.11,177.02,533.81]
[1755623348838,0.04116272,177.11,176.84,1628.46]
[1755623348839,2.93,177.1,176.97,3.17]
[1755623349639,0.04123409,177.05,176.97,3.17]
[1755623350033,3.13123409,177.05,176.92,382.64]
[1755623350442,3.09,177.05,176.92,382.64]
[1755623352243,3.09,177.05,176.92,2.96]
[1755623352642,3.09,177.05,176.88,2.96]
[1755623353137,3.09,177.05,176.87,150.64]
[1755623353138,3.09,177.05,176.87,162.6846178]
[1755623353340,3.09,177.05,176.89,2.96]
[1755623353738,3.09,177.05,176.9,2.96]
[1755623354939,3.09,177.03,176.87,150.64]
[1755623356236,15.1346178,177.03,176.87,150.64]
[1755623356447,3.09,177.01,176.87,150.64]
[1755623357141,3.09,177.01,176.88,2.96]
[1755623360953,530.4,177.06,176.88,2.96]
[1755623360954,533.49,177.06,176.88,2.96]
[1755623361539,533.49,177.06,176.89,150.66]
[1755623361851,533.49,177.06,176.9,2.96]
[1755623362039,533.49,177.06,176.9,8.6127]
[1755623362244,533.49,177.06,176.91,2.96]
[1755623362750,533.49,177.06,176.93,2.96]
[1755623364048,3.09,177.05,176.93,2.96]
[1755623365444,3.09,177.05,176.87,150.64]
[1755623365649,530.4,177.06,176.88,2.96]
[1755623365650,3.09,177.03,176.88,2.96]
[1755623366047,2.70758536,177.02,176.88,2.96]
[1755623366247,3.09,177.01,176.88,2.96]
[1755623367857,3.09,177.05,176.88,2.96]
[1755623368449,2.70969892,177.04,176.88,2.96]
[1755623368748,2.70967729,177.03,176.88,2.96]
[1755623368953,5.79949724,177.02,176.88,2.96]
[1755623369149,3.09,177.02,176.88,2.96]
[1755623371451,2.71056597,177.01,176.88,2.96]
[1755623371653,14.75501761,177.0,176.84,2.96]
[1755623371852,5.80039981,176.99,176.84,2.96]
[1755623372054,3.09,176.97,176.84,2.96]
[1755623376353,150.6,176.98,176.84,2.96]
[1755623376550,150.6,176.98,176.85,2.96]
[1755623376752,3.09,177.01,176.85,2.96]
[1755623376954,3.09,177.01,176.86,5.6542]
[1755623377157,3.09,177.01,176.85,2.96]
[1755623378046,3.09,177.01,176.85,8.6145]
[1755623378250,3.09,177.01,176.82,379.7]
[1755623378251,3.09,177.01,176.86,2.96]
[1755623379858,2.71240757,177.0,176.82,382.65]
[1755623380057,17.84702537,176.99,176.82,382.65]
[1755623380259,3.09,176.98,176.82,382.65]
[1755623380562,2.71156309,176.97,176.82,2.95]
[1755623380756,5.80156309,176.96,176.8,153.57]
[1755623381057,3.09,176.94,176.8,153.57]
[1755623381252,3.09,176.94,176.81,2.95]
[1755623383155,0.03844112,176.89,176.81,2.95]
[1755623384562,3.09,176.99,176.81,2.95]
[1755623384754,3.09,176.99,176.83,2.95]
[1755623385258,3.09,176.99,176.85,2.95]
[1755623385660,3.09,176.99,176.87,2.95]
[1755623386359,3.09,176.99,176.89,2.95]
[1755623387457,150.6,177.04,176.89,2.95]
[1755623387652,3.13,177.09,176.9,150.56]
[1755623387857,3.13,177.09,176.94,5.6516]
[1755623388163,3.13,177.09,176.92,2.95]
[1755623388458,3.13,177.07,176.92,2.95]
[1755623389160,2.72199213,177.06,176.92,2.95]
[1755623389363,3.13,177.07,176.92,2.95]
[1755623389560,3.13,177.07,176.93,2.95]
[1755623390252,2.72767419,177.06,176.93,2.95]
[1755623390555,3.13,177.07,176.93,2.95]
[1755623391358,3.13,177.07,176.98,0.0361417]
[1755623391661,2.72968649,177.06,176.98,0.0361417]
[1755623391866,3.13,177.07,176.98,0.0361417]
[1755623392058,2.72962793,177.06,176.98,0.0361417]
[1755623392258,2.72962793,177.05,176.98,0.0361417]
[1755623392457,3.13,177.07,176.98,0.0361417]
[1755623392659,2.73201546,177.06,176.98,0.0361417]
[1755623392860,2.73201546,177.05,176.98,0.0361417]
[1755623393060,3.13,177.07,176.98,0.0361417]
[1755623393362,9.27969509,177.11,176.99,2.95]
[1755623393566,2.7340402,177.1,176.99,2.95]
[1755623393762,3.13,177.08,176.99,2.95]
[1755623393963,3.13,177.06,176.9,2.95]
[1755623394160,2.7340402,177.05,176.9,2.95]
[1755623394462,3.13,177.03,176.9,2.95]
[1755623394662,3.13,177.01,176.9,2.95]
[1755623394861,2.7340402,177.0,176.9,2.95]
[1755623395062,2.7340402,176.99,176.94,0.03579231]
[1755623395365,3.13,176.98,176.94,0.03579231]
[1755623396359,6.14969509,177.03,176.94,0.03579231]
[1755623396556,5.86238001,177.02,176.94,0.03579231]
[1755623396758,2.73238001,177.01,176.94,0.03579231]
[1755623397060,2.73238001,177.0,176.94,0.03579231]
[1755623397267,3.13,176.97,176.94,0.03579231]
[1755623397456,9.27969509,177.02,176.94,0.03579231]
[1755623397662,2.73017984,177.01,176.94,0.03579231]
[1755623397861,2.73017984,177.0,176.94,0.03579231]
[1755623398060,5.86017984,176.99,176.94,0.03579231]
[1755623398263,2.73017984,176.98,176.94,0.03579231]
[1755623398667,3.13,176.99,176.94,0.03579231]
[1755623399970,3.13,176.98,176.94,0.03579231]
[1755623400278,3.13,177.01,176.94,0.03579231]
[1755623400758,3.13,177.01,176.93,2.95]
[1755623400759,2.72961938,177.0,176.93,2.95]
[1755623400960,2.72846971,176.99,176.96,0.03607776]
[1755623401161,12.2268388,177.1,176.96,0.03607776]
[1755623401162,3.13,176.97,176.96,0.03607776]
[1755623401363,9.34776467,177.02,176.9,2.95]
[1755623401560,2.72807909,177.01,176.9,2.95]
[1755623401760,2.72807909,177.0,176.9,2.95]
[1755623401968,2.72834318,176.99,176.9,2.95]
[1755623402274,3.13,177.02,176.9,2.95]
[1755623402467,2.72824869,177.01,176.93,0.03633804]
[1755623402676,3.13,177.02,176.93,2.98633804]
[1755623402872,2.72871525,177.01,176.93,2.98633804]
[1755623403172,3.13,177.02,176.93,2.98633804]
[1755623403371,2.72798354,177.01,176.93,2.98633804]
[1755623403573,3.13,177.06,176.93,2.98633804]
[1755623403870,2.7284356,177.05,176.93,2.98633804]
[1755623404061,2.7284356,177.04,176.93,2.95]
[1755623404269,3.13,177.02,176.93,2.95]
[1755623405473,3.13,177.07,176.93,2.95]
[1755623405671,2.72894109,177.06,176.93,2.95]
[1755623405871,3.13,177.07,176.93,2.95]
[1755623406274,3.13,177.07,176.94,13.23573943]
[1755623406475,3.13,177.07,176.95,2.95]
[1755623406674,3.13,177.11,176.95,2.95]
[1755623406872,6.21776467,177.14,176.98,7.58403943]
[1755623407075,2.72943838,177.13,176.99,2.95]
[1755623407273,3.13,177.15,176.99,2.95]
[1755623407576,2.7278919,177.14,177.0,2.95]
[1755623407776,2.7278919,177.13,177.0,2.95]
[1755623407976,3.13,177.15,177.0,2.95]
[1755623408179,2.72743326,177.14,177.0,2.95]
[1755623408382,2.72743326,177.13,177.0,2.95]
[1755623408678,3.13,177.15,177.0,2.95]
[1755623408872,2.72639198,177.14,177.0,2.95]
[1755623409067,3.13,177.15,177.0,2.95]
[1755623409272,2.72513663,177.14,177.0,2.95]
[1755623409474,3.13,177.15,177.0,2.95]
[1755623409676,2.72492123,177.14,177.0,2.95]
[1755623409871,3.13,177.15,177.0,2.95]
[1755623410080,2.72492123,177.14,177.0,2.95]
[1755623410281,3.13,177.15,177.0,2.95]
[1755623410483,2.72356209,177.14,177.0,2.95]
[1755623410674,3.13,177.15,177.0,2.95]
[1755623410874,2.72356209,177.14,177.0,2.95]
[1755623411076,3.13,177.15,177.0,2.95]
[1755623412383,2.72110029,177.14,177.0,2.95]
[1755623412576,2.94,177.13,177.0,2.95]
[1755623413183,2.94,177.13,176.96,150.42]
[1755623413184,2.94,177.11,176.96,153.33]
[1755623414079,2.94,177.11,176.96,2.91]
[1755623414382,2.94,177.09,176.96,2.91]
[1755623414582,2.72594618,177.08,176.96,2.91]
[1755623414882,2.94,177.09,176.96,2.91]
[1755623415083,2.72592437,177.08,176.96,2.91]
[1755623415283,2.94,177.09,176.96,2.91]
[1755623415479,2.72569942,177.08,176.96,2.91]
[1755623415677,2.94,177.09,176.96,2.91]
[1755623415983,2.72569307,177.08,176.96,2.91]
[1755623416184,2.94,177.09,176.96,2.91]
[1755623416384,2.94,177.07,176.96,2.91]
[1755623416681,150.32,177.11,176.96,2.91]
[1755623416879,153.26,177.11,176.96,2.91]
[1755623417384,2.94,177.1,176.96,2.91]
[1755623417784,2.7258381,177.09,176.96,2.91]
[1755623417982,5.6655738,177.08,176.96,2.91]
[1755623418185,2.94,177.08,176.96,2.91]
[1755623419079,150.32,177.11,176.96,2.91]
[1755623419577,2.94,177.12,176.96,2.91]
[1755623419976,2.94,177.12,176.98,5.6503]
[1755623420180,2.94,177.12,176.99,2.91]
[1755623421784,2.94,177.12,177.0,5.6496]
[1755623421981,382.88,177.16,177.01,2.91]